bitfinex/quotes_SOLUSD_20241226
["timestamp","ask_amount","ask_price","bid_price","bid_amount"]
[1735254287652,1.5929,188.52,188.47,7.86800402]
[1735254287856,1.5929,188.52,188.41,0.79587303]
[1735254288058,1.5929,188.52,188.43,7.86800402]
[1735254288378,1.5929,188.52,188.34,187.27197727]
[1735254288695,6.4622,188.53,188.39,7.86800402]
[1735254288696,1.5929,188.49,188.39,7.86800402]
[1735254289107,1.5929,188.49,188.4,7.86800402]
[1735254289400,1.5929,188.49,188.46,7.86800402]
[1735254289763,1.5929,188.49,188.45,7.86800402]
[1735254289966,1.5929,188.49,188.44,7.86800402]
[1735254290168,1.5929,188.49,188.42,7.86800402]
[1735254290370,1.5929,188.49,188.44,7.86800402]
[1735254290608,1.5929,188.49,188.45,7.86800402]
[1735254290973,1.5929,188.49,188.44,7.86800402]
[1735254291708,1.5929,188.49,188.43,7.86800402]
[1735254291914,1.5929,188.49,188.4,7.86800402]
[1735254292200,1.5929,188.49,188.42,7.86800402]
[1735254292705,1.5929,188.49,188.4,7.86800402]
[1735254293186,1.5929,188.49,188.41,7.86800402]
[1735254294014,1.5929,188.49,188.4,7.86800402]
[1735254294687,1.5929,188.49,188.39,7.86800402]
[1735254294890,1.5929,188.49,188.37,0.7957823]
[1735254294891,6.4622,188.48,188.37,7.86800402]
[1735254295095,6.4622,188.48,188.39,7.86800402]
[1735254295403,6.4622,188.48,188.42,7.86800402]
[1735254295911,6.4622,188.48,188.41,7.86800402]
[1735254296405,6.4622,188.48,188.33,13.2745]
[1735254296626,6.4622,188.48,188.4,7.86800402]
[1735254297407,6.4622,188.48,188.37,0.79586121]
[1735254297613,8.0551,188.36,188.28,137.5]
[1735254297829,28.0551,188.28,188.14,107.93306921]
[1735254297985,0.12549,188.19,188.06,116.26822068]
[1735254298308,0.98936731,188.19,188.13,10.26486425]
[1735254298507,20.0,188.18,188.12,65.37725326]
[1735254298676,0.86387731,188.17,188.11,48.94456272]
[1735254298883,4.65509,188.16,187.99,7.86800402]
[1735254299122,20.12549,188.13,187.97,1.010799]
[1735254299282,0.12549,188.11,187.97,1.010799]
[1735254299483,0.12549,188.09,187.97,1.010799]
[1735254299817,0.86387731,188.08,187.97,1.010799]
[1735254300004,0.12549,188.07,187.9,34.23114308]
[1735254300311,11.63682982,188.07,188.01,12.36877326]
[1735254300512,10.63934493,188.06,187.91,0.33262127]
[1735254300811,10.63934493,188.06,188.05,12.36877326]
[1735254301109,50.57713344,188.12,188.0,12.36877326]
[1735254301310,50.57713344,188.12,187.9,137.5]
[1735254301607,20.0,188.09,188.0,12.36877326]
[1735254301809,20.99721852,188.08,187.98,12.36877326]
[1735254301991,20.99721852,188.08,187.9,12.36877326]
[1735254302191,10.64381241,188.07,187.98,19.78896343]
[1735254302398,20.0,188.04,187.95,19.78896343]
[1735254302597,0.99745729,188.03,187.95,19.78896343]
[1735254302897,0.99745329,188.05,188.01,19.78896343]
[1735254303093,10.64381241,188.02,187.91,0.12549]
[1735254303640,10.64381241,188.04,187.99,19.78896343]
[1735254303826,24.33556229,188.01,187.99,19.78896343]
[1735254304187,10.64381241,188.0,187.95,19.78896343]
[1735254304794,69.03967807,187.99,187.95,19.78896343]
[1735254304994,69.03967807,187.99,187.97,19.78896343]
[1735254305200,10.64381241,187.98,187.97,19.78896343]
[1735254305519,53.99564107,187.98,187.97,19.78896343]
[1735254306016,53.99564107,187.98,187.95,19.78896343]
[1735254306214,78.83120336,187.98,187.93,19.78896343]
[1735254306595,10.64381241,187.97,187.93,19.78896343]
[1735254307216,10.64381241,187.96,187.93,19.78896343]
[1735254307721,26.24665233,187.95,187.93,19.78896343]
[1735254307922,36.89046474,187.95,187.93,19.78896343]
[1735254308224,10.64381241,187.94,187.93,19.78896343]
[1735254308411,37.3280848,187.94,187.93,19.78896343]
[1735254309306,42.2985704,187.93,187.8,75.97912747]
[1735254309510,42.2985704,187.93,187.92,17.48114243]
[1735254309716,42.2985704,187.93,187.91,9.36259488]
[1735254310022,42.2985704,187.93,187.84,13.309]
[1735254310334,52.94238281,187.93,187.92,19.78896343]
[1735254310537,42.2985704,187.93,187.92,19.78896343]
[1735254311126,111.82544782,187.93,187.92,19.78896343]
[1735254311326,85.29154434,187.93,187.91,19.78896343]
[1735254311506,85.29154434,187.93,187.89,19.78896343]
[1735254311689,85.29154434,187.93,187.91,0.12549]
[1735254311892,85.29154434,187.93,187.92,19.78896343]
[1735254312095,85.29154434,187.93,187.92,19.91445343]
[1735254312331,74.86251273,187.93,187.92,19.91445343]
[1735254314318,50.13041273,187.93,187.92,19.91445343]
[1735254314494,32.05921273,187.93,187.92,19.91445343]
[1735254315906,11.9215523,187.98,187.93,0.12549]
[1735254316113,20.0,188.08,187.96,0.12549]
[1735254316337,20.0,188.08,187.97,26.3581347]
[1735254316532,20.0,188.08,187.9,13.3045]
[1735254316533,0.99704949,188.07,187.92,26.35796143]
[1735254316702,0.99704949,188.07,187.9,26.8887291]
[1735254317132,0.99704949,188.07,187.93,3.54527539]
[1735254317422,0.12549,188.06,187.93,30.48695283]
[1735254317615,1.525,188.04,187.93,3.54527539]
[1735254317826,0.99750626,188.03,187.86,19.78896343]
[1735254318024,0.99750626,188.03,187.87,0.12549]
[1735254318629,0.99750626,188.03,187.86,19.78896343]
[1735254318833,0.99750626,188.03,187.86,0.12549]
[1735254319042,20.0,187.99,187.86,0.12549]
[1735254319345,0.99597975,187.98,187.84,19.78896343]
[1735254319502,0.99597975,187.98,187.85,19.78896343]
[1735254319706,0.99597975,187.98,187.83,19.78896343]
[1735254319942,0.99597975,187.98,187.84,19.78896343]
[1735254320321,20.0,187.99,187.86,19.78896343]
[1735254320569,0.99754086,187.98,187.86,19.78896343]
[1735254321124,0.99754086,187.98,187.85,0.12549]
[1735254321319,0.99754086,187.98,187.84,19.78896343]
[1735254321523,0.99754086,187.98,187.81,19.78896343]
[1735254321718,3.9899,187.97,187.82,19.78896343]
[1735254322050,0.99778128,187.96,187.83,19.91445343]
[1735254322208,0.99771033,187.98,187.83,19.91445343]
[1735254322921,0.12549,188.01,187.84,0.7981485]
[1735254323130,1.12128301,188.01,187.84,0.7981485]
[1735254323331,19.81346067,187.9,187.84,0.7981485]
[1735254323532,19.81346067,187.9,187.83,19.93895067]
[1735254324244,19.81346067,187.9,187.83,20.73710598]
[1735254324441,19.81346067,187.9,187.83,0.92364531]
[1735254325040,19.81346067,187.89,187.83,0.92364531]
[1735254325342,19.81346067,187.89,187.83,0.79815531]
[1735254325731,19.81346067,187.88,187.83,0.79815531]
[1735254326150,19.81346067,187.87,187.83,0.79815531]
[1735254327265,19.81346067,187.88,187.83,0.79815531]
[1735254327939,19.81346067,187.87,187.83,0.79815531]
[1735254328239,19.81346067,187.88,187.83,0.79815531]
[1735254328771,19.81346067,187.86,187.81,0.79822175]
[1735254329067,19.81346067,187.88,187.81,19.81346067]
[1735254329269,19.81346067,187.88,187.82,0.79817475]
[1735254330183,19.81346067,187.89,187.82,0.79817475]
[1735254331336,19.81346067,187.87,187.82,0.79817475]
[1735254331867,19.81346067,187.88,187.82,0.79817475]
[1735254332437,19.81346067,187.87,187.82,0.79817475]
[1735254332764,19.81346067,187.86,187.82,0.79817475]
[1735254333258,19.81346067,187.85,187.79,0.79828296]
[1735254333438,19.81346067,187.86,187.79,20.61174363]
[1735254333639,19.81346067,187.85,187.79,0.79828296]
[1735254333944,19.81346067,187.86,187.79,20.61174363]
[1735254334154,12.38882073,187.86,187.79,13.18710369]
[1735254334480,12.38882073,187.84,187.79,0.79828296]
[1735254334772,12.38882073,187.84,187.78,0.79841368]
[1735254335668,12.38882073,187.84,187.77,12.38882073]
[1735254335851,12.38882073,187.84,187.78,0.79841653]
[1735254336261,12.38882073,187.83,187.78,0.79841653]
[1735254336670,12.38882073,187.82,187.78,0.79841653]
[1735254336846,12.38882073,187.83,187.77,0.79842222]
[1735254337178,12.38882073,187.81,187.77,0.79842222]
[1735254337388,12.38882073,187.84,187.77,13.18738869]
[1735254337718,12.38882073,187.85,187.78,12.38882073]
[1735254337980,12.38882073,187.84,187.77,12.38882073]
[1735254338962,12.38882073,187.84,187.76,12.38882073]
[1735254339657,12.38882073,187.83,187.75,12.38882073]
[1735254339885,12.38882073,187.82,187.75,12.38882073]
[1735254340385,0.99579301,187.87,187.75,0.7985684]
[1735254340386,12.38882073,187.81,187.75,0.7985684]
[1735254340682,15.85586044,187.81,187.75,0.7985684]
[1735254340977,3.46703971,187.81,187.75,13.18738913]
[1735254341177,1.33347681,187.8,187.75,13.18738913]
[1735254341687,3.46706021,187.79,187.75,13.18738913]
[1735254341864,3.46706021,187.79,187.75,0.7985684]
[1735254342590,3.46706021,187.78,187.75,0.7985684]
[1735254342776,3.46706021,187.78,187.74,12.38882073]
[1735254343094,1.33347681,187.77,187.74,12.38882073]
[1735254343255,1.33347681,187.77,187.72,7.33584743]
[1735254343464,1.33347681,187.77,187.73,12.38882073]
[1735254343677,1.33347681,187.76,187.73,12.38882073]
[1735254344071,1.33347681,187.75,187.73,12.38882073]
[1735254344470,1.33347681,187.75,187.72,19.72466816]
[1735254344671,1.33347681,187.75,187.7,12.38882073]
[1735254344886,1.33347681,187.74,187.7,12.38882073]
[1735254345392,1.33347681,187.73,187.7,12.38882073]
[1735254345595,1.33347681,187.73,187.7,11.38882073]
[1735254345796,1.33347681,187.73,187.71,12.38882073]
[1735254345979,1.33347681,187.72,187.71,12.38882073]
[1735254346799,1.33347681,187.72,187.7,12.38882073]
[1735254347296,1.33347681,187.71,187.7,12.38882073]
[1735254347999,1.33347681,187.71,187.69,12.38882073]
[1735254348372,1.33347681,187.71,187.7,12.38882073]
[1735254348573,12.38882073,187.76,187.7,12.38882073]
[1735254348790,12.38882073,187.72,187.65,0.79883401]
[1735254348979,1.33391469,187.71,187.66,12.38882073]
[1735254349180,1.33391469,187.71,187.7,12.38882073]
[1735254349594,1.33391469,187.71,187.7,13.31305302]
[1735254349772,1.33391469,187.71,187.7,31.44033146]
[1735254349977,12.38882073,187.86,187.74,0.12549]
[1735254350274,12.38882073,187.86,187.79,12.38882073]
[1735254350490,2.59469301,187.91,187.81,12.38882073]
[1735254350491,12.38882073,187.87,187.81,12.38882073]
[1735254351073,12.38882073,187.87,187.76,0.7982978]
[1735254351074,12.38882073,187.87,187.8,12.38882073]
[1735254351699,12.38882073,187.84,187.78,12.38882073]
[1735254352204,12.38882073,187.84,187.77,12.38882073]
[1735254352573,12.38882073,187.82,187.76,12.38882073]
[1735254352895,12.38882073,187.83,187.76,12.38882073]
[1735254353077,12.38882073,187.84,187.77,12.38882073]
[1735254353313,12.38882073,187.84,187.73,0.12549]
[1735254353314,12.38882073,187.85,187.78,12.38882073]
[1735254354102,12.38882073,187.84,187.77,12.38882073]
[1735254354309,0.99579301,187.89,187.76,12.38882073]
[1735254354310,12.38882073,187.83,187.76,12.38882073]
[1735254355476,12.38882073,187.8,187.73,12.38882073]
[1735254355698,12.38882073,187.79,187.72,12.38882073]
[1735254355915,12.38882073,187.8,187.72,12.38882073]
[1735254356309,12.38882073,187.79,187.72,12.38882073]
[1735254356610,12.38882073,187.76,187.7,6.5372]
[1735254357086,12.38882073,187.77,187.7,18.92602073]
[1735254357489,12.38882073,187.76,187.69,12.38882073]
[1735254357689,12.38882073,187.75,187.68,12.38882073]
[1735254358422,12.38882073,187.79,187.72,12.38882073]
[1735254358611,12.38882073,187.8,187.73,12.38882073]
[1735254359112,12.38882073,187.81,187.74,12.38882073]
[1735254359273,12.38882073,187.82,187.75,12.38882073]
[1735254359677,12.38882073,187.81,187.74,12.38882073]
[1735254360181,12.38882073,187.81,187.73,12.38882073]
[1735254360377,12.38882073,187.8,187.73,12.38882073]
[1735254360578,12.38882073,187.79,187.71,12.38882073]
[1735254360782,12.38882073,187.78,187.71,12.38882073]
[1735254361094,12.38882073,187.79,187.71,12.38882073]
[1735254361412,0.99579301,187.81,187.71,12.38882073]
[1735254361703,12.38882073,187.78,187.71,12.38882073]
[1735254362894,12.38882073,187.78,187.69,12.38882073]
[1735254363090,0.99579301,187.8,187.74,12.38882073]
[1735254363325,12.38882073,187.85,187.77,12.38882073]
[1735254363531,12.38882073,187.83,187.75,12.38882073]
[1735254364431,12.38882073,187.79,187.71,12.38882073]
[1735254364737,12.38882073,187.77,187.69,12.38882073]
[1735254365838,12.38882073,187.75,187.67,12.38882073]
[1735254366219,19.85524577,187.72,187.64,19.85524577]
[1735254366411,19.85524577,187.72,187.66,19.85524577]
[1735254366603,19.85524577,187.74,187.66,19.85524577]
[1735254367735,25.67044577,187.8,187.64,19.85524577]
[1735254367736,19.85524577,187.72,187.64,19.85524577]
[1735254369138,19.85524577,187.68,187.6,19.85524577]
[1735254369710,19.85524577,187.7,187.57,0.79921213]
[1735254369909,19.85524577,187.68,187.59,19.85524577]
[1735254370110,19.85524577,187.68,187.61,19.85524577]
[1735254370536,19.85524577,187.7,187.63,19.85524577]
[1735254370703,19.85524577,187.72,187.64,19.85524577]
[1735254371529,19.85524577,187.74,187.66,19.85524577]
[1735254371905,19.85524577,187.73,187.65,19.85524577]
[1735254372611,19.85524577,187.74,187.66,19.85524577]
[1735254373616,19.85524577,187.75,187.68,19.85524577]
[1735254373819,1.8189,187.76,187.7,19.85524577]
[1735254374042,19.85524577,187.78,187.7,19.85524577]
[1735254375035,19.85524577,187.79,187.71,19.85524577]
[1735254375410,19.85524577,187.78,187.71,19.85524577]
[1735254375835,19.85524577,187.76,187.69,19.85524577]
[1735254376343,19.85524577,187.74,187.67,19.85524577]
[1735254376533,19.85524577,187.75,187.68,19.85524577]
[1735254377440,19.85524577,187.76,187.68,19.85524577]
[1735254378143,7.899,187.81,187.7,19.85524577]
[1735254378333,19.85524577,187.78,187.71,19.85524577]
[1735254378541,19.85524577,187.79,187.72,19.85524577]
[1735254378849,19.85524577,187.8,187.73,19.85524577]
[1735254379045,21.67414577,187.81,187.73,19.85524577]
[1735254380122,19.85524577,187.82,187.74,19.85524577]
[1735254380322,19.85524577,187.84,187.77,19.85524577]
[1735254380638,21.81314577,187.86,187.79,19.85524577]
[1735254380837,19.85524577,187.86,187.74,0.92385816]
[1735254381047,19.85524577,187.86,187.79,19.85524577]
[1735254381240,19.85524577,187.87,187.8,19.85524577]
[1735254381430,1.9579,187.9,187.83,19.85524577]
[1735254381648,19.85524577,187.91,187.83,19.85524577]
[1735254381820,19.85524577,187.89,187.82,19.85524577]
[1735254382129,19.85524577,187.89,187.81,19.85524577]
[1735254382528,19.85524577,187.89,187.82,19.85524577]
[1735254383050,19.85524577,187.93,187.85,19.85524577]
[1735254383223,19.85524577,187.94,187.87,19.85524577]
[1735254383972,19.85524577,187.96,187.89,19.85524577]
[1735254384324,19.85524577,187.97,187.89,19.85524577]
[1735254384528,19.85524577,187.97,187.9,19.85524577]
[1735254385022,19.85524577,187.99,187.92,19.85524577]
[1735254385222,19.85524577,188.0,187.93,19.85524577]
[1735254385418,19.85524577,188.01,187.93,19.85524577]
[1735254385640,19.85524577,188.01,187.94,19.85524577]
[1735254385843,19.85524577,188.03,187.96,19.85524577]
[1735254386242,19.85524577,188.03,187.95,19.85524577]
[1735254386444,19.85524577,188.01,187.93,19.85524577]
[1735254386856,19.85524577,188.02,187.95,19.85524577]
[1735254387156,19.85524577,188.01,187.93,20.65299388]
[1735254388057,19.85524577,188.01,187.94,19.85524577]
[1735254388356,19.85524577,188.03,187.95,19.85524577]
[1735254389654,19.85524577,188.01,187.93,0.79774811]
[1735254389869,19.85524577,188.01,187.93,20.65299388]
[1735254390762,19.85524577,188.02,187.95,19.85524577]
[1735254391745,6.576,188.06,187.95,19.85524577]
[1735254391746,19.85524577,188.06,187.98,19.85524577]
[1735254392126,8.5339,188.1,187.99,19.85524577]
[1735254392127,19.85524577,188.07,187.99,19.85524577]
[1735254392660,19.85524577,188.08,188.0,19.85524577]
[1735254392864,19.85524577,188.09,188.01,19.85524577]
[1735254393159,19.85524577,188.08,188.01,19.85524577]
[1735254393360,19.85524577,188.08,188.0,19.85524577]
[1735254393539,19.85524577,188.05,187.98,19.85524577]
[1735254393739,19.85524577,188.06,187.99,19.85524577]
[1735254394757,19.85524577,188.02,187.94,19.85524577]
[1735254395134,19.85524577,188.01,187.93,19.85524577]
[1735254395339,19.85524577,188.03,187.95,19.85524577]
[1735254396363,19.85524577,188.02,187.95,19.85524577]
[1735254396541,19.85524577,188.02,187.94,19.85524577]
[1735254397687,19.85524577,187.99,187.91,26.07474577]
[1735254400762,19.85524577,188.01,187.93,19.85524577]
[1735254400966,19.85524577,187.99,187.91,26.07474577]
[1735254401351,19.85524577,187.99,187.91,19.85524577]
[1735254401566,19.85524577,187.97,187.89,20.6531165]
[1735254401970,19.85524577,187.97,187.89,19.85524577]
[1735254402888,3.9895,188.0,187.87,19.85524577]
[1735254403076,19.85524577,187.91,187.83,19.85524577]
[1735254403596,19.85524577,187.89,187.81,26.07474577]
[1735254403886,19.85524577,187.87,187.81,26.07474577]
[1735254404187,19.85524577,187.87,187.78,15.3237]
[1735254404188,19.85524577,187.9,187.82,19.85524577]
[1735254404392,19.85524577,187.91,187.84,19.85524577]
[1735254404688,19.85524577,187.93,187.85,19.85524577]
[1735254404869,19.85524577,187.91,187.83,19.85524577]
[1735254405316,19.85524577,187.88,187.81,19.85524577]
[1735254405494,19.85524577,187.89,187.82,19.85524577]
[1735254406158,19.85524577,187.89,187.81,19.85524577]
[1735254406358,19.85524577,187.88,187.81,19.85524577]
[1735254406763,19.85524577,187.87,187.79,19.85524577]
[1735254407063,19.85524577,187.85,187.77,26.07474577]
[1735254407264,19.85524577,187.84,187.77,6.2195]
[1735254407818,19.85524577,187.82,187.73,1.9565]
[1735254407958,19.85524577,187.79,187.72,6.5994]
[1735254408162,19.85524577,187.78,187.7,19.85524577]
[1735254408471,19.85524577,187.77,187.69,19.85524577]
[1735254408867,19.85524577,187.76,187.68,19.85524577]
[1735254409087,19.85524577,187.74,187.67,6.5994]
[1735254409314,19.85524577,187.73,187.67,6.5994]
[1735254409498,19.85524577,187.76,187.69,19.85524577]
[1735254409804,19.85524577,187.77,187.69,19.85524577]
[1735254412615,19.85524577,187.76,187.69,19.85524577]
[1735254413407,19.85524577,187.77,187.69,19.85524577]
[1735254413701,19.85524577,187.77,187.7,19.85524577]
[1735254413918,19.85524577,187.81,187.73,19.85524577]
[1735254414116,19.85524577,187.81,187.74,19.85524577]
[1735254414416,19.85524577,187.79,187.72,19.85524577]
[1735254415103,19.85524577,187.8,187.72,19.85524577]
[1735254415409,19.85524577,187.8,187.73,19.85524577]
[1735254416022,19.85524577,187.8,187.72,19.85524577]
[1735254416182,19.85524577,187.8,187.73,19.85524577]
[1735254416583,19.85524577,187.78,187.7,19.85524577]
[1735254416815,19.85524577,187.76,187.69,19.85524577]
[1735254416989,19.85524577,187.77,187.69,19.85524577]
[1735254417491,19.85524577,187.75,187.67,26.45464577]
[1735254417879,19.85524577,187.75,187.67,19.85524577]
[1735254419012,19.85524577,187.73,187.65,19.85524577]
[1735254420507,19.85524577,187.71,187.63,19.85524577]
[1735254420704,19.85524577,187.73,187.65,19.85524577]
[1735254422306,12.4084208,187.73,187.65,12.4084208]
[1735254422501,12.4084208,187.71,187.64,12.4084208]
[1735254423201,8.3904,187.75,187.64,12.4084208]
[1735254423202,12.4084208,187.72,187.64,12.4084208]
[1735254423820,12.4084208,187.67,187.59,6.5994]
[1735254424014,12.4084208,187.66,187.59,19.0078208]
[1735254424319,12.4084208,187.69,187.61,12.4084208]
[1735254424520,12.4084208,187.68,187.61,12.4084208]
[1735254425218,12.4084208,187.67,187.6,12.4084208]
[1735254425423,12.4084208,187.66,187.59,19.0078208]
[1735254425727,12.4084208,187.66,187.58,12.4084208]
[1735254425906,12.4084208,187.65,187.58,12.4084208]
[1735254426109,12.4084208,187.66,187.58,12.4084208]
[1735254426420,12.4084208,187.68,187.61,12.4084208]
[1735254426600,0.99579301,187.74,187.66,12.4084208]
[1735254426930,2.0046,187.75,187.68,12.4084208]
[1735254428194,21.85128524,187.75,187.68,19.84668524]
[1735254429895,19.84668524,187.74,187.66,19.84668524]
[1735254430224,19.84668524,187.74,187.67,19.84668524]
[1735254430408,21.85128524,187.75,187.67,19.84668524]
[1735254431426,19.84668524,187.74,187.67,19.84668524]
[1735254431627,19.84668524,187.73,187.66,19.84668524]
[1735254432221,20.84247825,187.72,187.64,19.84668524]
[1735254432398,19.84668524,187.71,187.63,19.84668524]
[1735254432740,19.84668524,187.72,187.65,19.84668524]
[1735254433530,19.84668524,187.72,187.64,19.84668524]
[1735254433737,19.84668524,187.73,187.66,19.84668524]
[1735254434230,2.0046,187.75,187.69,19.84668524]
[1735254434525,19.84668524,187.77,187.69,19.84668524]
[1735254434829,19.84668524,187.76,187.69,19.84668524]
[1735254435001,19.84668524,187.75,187.68,19.84668524]
[1735254435523,19.84668524,187.76,187.69,19.84668524]
[1735254436130,19.84668524,187.77,187.69,19.84668524]
[1735254436310,0.99579301,187.79,187.71,19.84668524]
[1735254436623,19.84668524,187.77,187.7,19.84668524]
[1735254437023,19.84668524,187.78,187.71,19.84668524]
[1735254437323,8.3057,187.8,187.73,19.84668524]
[1735254437324,21.66488524,187.8,187.73,19.84668524]
[1735254438130,19.84668524,187.81,187.74,19.84668524]
[1735254438434,6.6171,187.84,187.69,13.3193]
[1735254438435,19.84668524,187.82,187.75,19.84668524]
[1735254440146,19.84668524,187.82,187.74,19.84668524]
[1735254440522,19.84668524,187.78,187.71,19.97217524]
[1735254440843,19.84668524,187.79,187.72,19.84668524]
[1735254441148,19.84668524,187.8,187.73,19.84668524]
[1735254441515,19.84668524,187.79,187.71,19.84668524]
[1735254441720,19.84668524,187.77,187.7,19.84668524]
[1735254441939,19.84668524,187.77,187.69,19.84668524]
[1735254442245,19.84668524,187.77,187.7,19.84668524]
[1735254442434,19.84668524,187.79,187.71,19.84668524]
[1735254442630,19.84668524,187.77,187.7,19.84668524]
[1735254442824,19.84668524,187.76,187.69,19.84668524]
[1735254443448,19.84668524,187.75,187.67,19.84668524]
[1735254443648,19.84668524,187.75,187.68,19.84668524]
[1735254443822,19.84668524,187.76,187.69,19.84668524]
[1735254444454,19.84668524,187.76,187.68,19.84668524]
[1735254444747,19.84668524,187.75,187.67,19.84668524]
[1735254444953,19.84668524,187.76,187.68,19.84668524]
[1735254445400,19.84668524,187.77,187.69,19.84668524]
[1735254445524,19.84668524,187.78,187.71,19.84668524]
[1735254445948,19.84668524,187.77,187.69,19.84668524]
[1735254446661,4.98879301,187.83,187.65,6.2716]
[1735254446662,19.84668524,187.75,187.67,19.84668524]
[1735254446964,19.84668524,187.73,187.65,26.11828524]
[1735254447259,19.84668524,187.73,187.65,19.84668524]
[1735254448069,19.84668524,187.71,187.63,19.84668524]
[1735254448234,12.41043476,187.71,187.63,12.41043476]
[1735254449151,12.41043476,187.69,187.61,12.41043476]
[1735254449745,0.99579301,187.68,187.61,12.41043476]
[1735254451468,12.41043476,187.67,187.61,12.41043476]
[1735254451836,12.41043476,187.67,187.59,12.41043476]
[1735254452052,2.84249301,187.66,187.59,12.41043476]
[1735254452248,12.41043476,187.65,187.57,12.41043476]
[1735254452547,12.41043476,187.6,187.52,12.41043476]
[1735254453161,12.41043476,187.61,187.53,12.41043476]
[1735254453370,12.41043476,187.63,187.55,12.41043476]
[1735254453895,12.41043476,187.6,187.52,0.12549]
[1735254454056,12.41043476,187.6,187.53,12.41043476]
[1735254454456,12.41043476,187.62,187.54,12.41043476]
[1735254454660,13.40622777,187.64,187.56,12.41043476]
[1735254454960,12.41043476,187.63,187.56,12.41043476]
[1735254455143,12.41043476,187.62,187.55,12.41043476]
[1735254455938,12.41043476,187.58,187.51,0.79951594]
[1735254456146,3.9972,187.63,187.49,12.41043476]
[1735254456147,12.41043476,187.57,187.49,12.41043476]
[1735254456357,12.41043476,187.58,187.5,12.41043476]
[1735254456540,12.41043476,187.58,187.51,12.41043476]
[1735254456748,12.41043476,187.58,187.5,12.41043476]
[1735254457468,0.99579301,187.62,187.5,12.41043476]
[1735254457469,12.41043476,187.57,187.5,12.41043476]
[1735254457664,0.99579301,187.62,187.52,12.41043476]
[1735254457665,12.41043476,187.6,187.52,12.41043476]
[1735254459255,12.41043476,187.62,187.55,12.41043476]
[1735254459869,12.41043476,187.61,187.53,12.41043476]
[1735254460066,12.41043476,187.61,187.54,12.41043476]
[1735254460269,12.41043476,187.6,187.52,12.41043476]
[1735254460652,12.41043476,187.61,187.53,12.41043476]
[1735254461564,12.41043476,187.6,187.53,12.41043476]
[1735254463176,12.41043476,187.61,187.53,12.41043476]
[1735254463558,12.41043476,187.62,187.54,12.41043476]
[1735254464471,12.41043476,187.63,187.56,12.41043476]
[1735254464675,12.41043476,187.64,187.57,12.41043476]
[1735254464846,12.41043476,187.62,187.54,0.12549]
[1735254465052,12.41043476,187.63,187.56,12.41043476]
[1735254465265,12.41043476,187.64,187.56,12.41043476]
[1735254465574,12.41043476,187.63,187.56,12.41043476]
[1735254466047,12.41043476,187.63,187.55,12.41043476]
[1735254466246,12.41043476,187.63,187.56,12.41043476]
[1735254467278,12.41043476,187.65,187.57,12.53592476]
[1735254467442,12.41043476,187.68,187.61,12.41043476]
[1735254468154,12.41043476,187.69,187.61,12.41043476]
[1735254468470,12.41043476,187.69,187.62,12.41043476]
[1735254469182,12.41043476,187.7,187.63,12.41043476]
[1735254469707,12.41043476,187.7,187.59,0.79915226]
[1735254469708,12.41043476,187.7,187.62,12.41043476]
[1735254470188,12.41043476,187.7,187.63,12.41043476]
[1735254470479,6.1972,187.74,187.66,12.41043476]
[1735254470682,12.41043476,187.72,187.65,12.41043476]
[1735254470878,0.99579301,187.73,187.63,12.41043476]
[1735254471067,12.41043476,187.7,187.63,12.41043476]
[1735254471266,12.41043476,187.71,187.64,12.41043476]
[1735254473473,12.41043476,187.72,187.64,12.41043476]
[1735254476378,0.99579301,187.73,187.65,12.41043476]
[1735254476570,18.60763476,187.74,187.66,12.41043476]
[1735254476758,12.41043476,187.73,187.65,12.41043476]
[1735254478685,12.41043476,187.72,187.65,12.41043476]
[1735254479371,12.41043476,187.69,187.61,12.41043476]
[1735254479691,12.41043476,187.69,187.62,12.41043476]
[1735254480402,12.41043476,187.7,187.62,12.41043476]
[1735254480554,12.41043476,187.7,187.63,12.41043476]
[1735254480985,12.41043476,187.72,187.64,12.41043476]
[1735254481185,12.41043476,187.73,187.65,12.41043476]
[1735254481397,12.41043476,187.73,187.66,12.41043476]
[1735254481569,18.60763476,187.74,187.66,12.41043476]
[1735254481773,1.8741,187.76,187.67,12.41043476]
[1735254481774,12.41043476,187.75,187.67,12.41043476]
[1735254481968,12.41043476,187.79,187.72,12.41043476]
[1735254482294,8.5584,187.86,187.73,12.41043476]
[1735254482295,12.41043476,187.8,187.73,12.41043476]
[1735254482489,12.41043476,187.81,187.74,12.41043476]
[1735254482872,0.99579301,187.85,187.76,12.41043476]
[1735254482873,12.41043476,187.83,187.76,12.41043476]
[1735254483165,8.5584,187.86,187.79,12.41043476]
[1735254483166,1.9468,187.86,187.79,12.41043476]
[1735254483416,6.6116,187.9,187.83,12.41043476]
[1735254483596,6.6116,187.9,187.84,12.41043476]
[1735254483793,19.02203476,187.9,187.83,12.41043476]
[1735254484089,14.35723476,187.91,187.84,12.41043476]
[1735254484297,12.41043476,187.93,187.86,12.41043476]
[1735254484479,12.41043476,187.87,187.76,6.4524]
[1735254484672,12.41043476,187.84,187.77,12.41043476]
[1735254484874,1.9468,187.88,187.77,12.41043476]
[1735254485066,0.99579301,187.87,187.73,13.44239]
[1735254485266,12.41043476,187.86,187.79,12.41043476]